Cogmind - Beta 11 @@@ ROGUE MODE // 2022.04.06 @ 19:37:28 Player: Dytto Result: Destroyed by S-10 Pest with Light Assault Rifle Performance ------------- Evolutions (0) 0 Regions Visited (2) 400 Robots Destroyed (14) 70 Value Destroyed (303) 303 Prototype IDs (2) 40 Alien Tech Used (0) 0 Bonus (0) 0 TOTAL SCORE: 813 Bonus ------- None Cogmind --------- Core Integrity 0/250 Matter 300/300 Energy 160/160 System Corruption 1% Temperature Cool (55) Movement Rolling (100) Location -10/Mines Parts ------- > --- POWER (1) -------- Light Nuclear Core > --- PROPULSION (2) --- Compact Wheel Compact Wheel > --- UTILITY (2) ------ Improved Targeting Computer Hacking Suite > --- WEAPON (2) ------- Medium Laser Mining Claw > --- INVENTORY (5) ---- Light Ion Engine Improved Targeting Computer Medium Armor Plating EM Pulse Gun Particle Gun Peak State ------------ > --- POWER ------------ Light Nuclear Core > --- PROPULSION ------- Wheel Compact Wheel > --- UTILITY ---------- Improved Targeting Computer Hacking Suite > --- WEAPON ----------- EM Pulse Gun Small Laser > --- INVENTORY -------- Compact Wheel Improved Targeting Computer Medium Armor Plating Particle Gun [Rating: 12] Favorites ----------- Power Light Ion Engine Engine Light Ion Engine Power Core Light Nuclear Core Propulsion Compact Wheel Wheel Compact Wheel Utility Weapon Shielding Device Tractor Beam Storage Medium Battery Processor Improved Targeting Computer Hackware Hacking Suite Protection Weapon Shielding Weapon EM Pulse Gun Energy Gun EM Pulse Gun Ballistic Gun Assault Rifle Special Weapon Mining Laser Slashing Weapon Mining Claw Build | -11 -10 -10 ------- Run | Scr Mat Min Slots Evolved . | . . . Power . | . . . Propulsion . | . . . Utility . | . . . Weapon . | . . . Parts Attached 24 | 5 17 2 Power 3 | 1 2 . Engine 2 | 1 1 . Core 1 | . 1 . Reactor . | . . . Propulsion 6 | 2 3 1 Treads . | . . . Leg . | . . . Wheel 6 | 2 3 1 Hover . | . . . Flight . | . . . Utility 5 | . 5 . Device 1 | . 1 . Storage 1 | . 1 . Processor 1 | . 1 . Hackware 1 | . 1 . Protection 1 | . 1 . Artifact . | . . . Weapon 10 | 2 7 1 Energy Gun 5 | 1 4 . Energy Cannon . | . . . Ballistic Gun 3 | 1 2 . Ballistic Cannon . | . . . Launcher . | . . . Special Weapon 1 | . 1 . Impact Weapon . | . . . Slashing Weapon 1 | . . 1 Piercing Weapon . | . . . Special Melee Weapon . | . . . Unidentified Prototypes . | . . . Parts Lost 8 | . 8 . Power 2 | . 2 . Propulsion 2 | . 2 . Utility 1 | . 1 . Weapon 3 | . 3 . Highest Loss Streak 6 | . 6 . To Critical Strikes . | . . . Average Slot Usage (%) 90 | . 87 100 Engine 7 | . 10 . Core 5 | . 3 14 Wheel 26 | . 26 28 Device 4 | . 6 . Storage 1 | . 1 . Processor 3 | . . 14 Hackware 5 | . 2 14 Protection 5 | . 6 . Energy Gun 12 | . 11 18 Ballistic Gun 9 | . 13 . Special Weapon 2 | . 3 . Slashing Weapon 2 | . . 9 Naked Turns . | . . . Heaviest Build 11 | 7 11 9 Greatest Support 32 | 32 32 32 Greatest Overweight (x) 2 | 2 2 . Average Overweight (x) . | . . . Largest Inventory Capacity 5 | 5 5 5 Average Capacity 5 | 5 5 5 Most Carried 5 | 2 5 5 Average Carried 3 | 1 3 4 Final Capacity 5 | 5 5 5 Final Carried 5 | 2 5 5 Class Distribution -------------------- 100% | Mutant Dominant Class ---------------- Mutant | -10/Materials Mutant | -10/Mines Resources | -11 -10 -10 ----------- Run | Scr Mat Min Matter Collected 562 | 250 242 70 Remotely 183 | . 183 . Salvage Created 370 | . 336 34 Parts 28 | . 23 5 Haulers Intercepted . | . . . Recyclers Shooed 1 | . 1 . Parts Field Recycled . | . . . Retrieved Matter . | . . . Parts Self-Destructed . | . . . Prevented . | . . . Kills | -11 -10 -10 ------- Run | Scr Mat Min Combat Hostiles Destroyed 13 | . 11 2 Guns 11 | . 9 2 AOE 2 | . 2 . Classes Destroyed 3 | . 3 . Operator 1 | . 1 . Swarmer 7 | . 5 2 Grunt 6 | . 6 . Best Kill Streak 3 | . 3 1 Combat Bots Only 3 | . 3 1 Max Kills in Single Turn 2 | . 2 1 Gunslinging . | . . . Exploded 2 | . 2 . Melee . | . . . Uniques/NPCs Destroyed . | . . . Combat | -11 -10 -10 -------- Run | Scr Mat Min Damage Taken 978 | . 850 128 Core 250 | . 215 35 Absorbed by Shields . | . . . Redirected to Shielding 52 | . 52 . Core Remaining (%) 100 | 100 . . Volleys Fired 73 | . 64 9 Largest 2 | . 2 2 Hottest 120 | . 120 90 Shots Fired 121 | . 110 11 Gun 116 | . 105 11 Cannon . | . . . Launcher . | . . . Special 5 | . 5 . Kinetic 79 | . 79 . Thermal 24 | . 15 9 Explosive . | . . . Electromagnetic 18 | . 16 2 Robot Hit Streak 4 | . 4 4 Robot Miss Streak 5 | . 5 3 Penetration Max . | . . . Secondary Targets 4 | . 4 . Max Gunslinging Chain 1 | . 1 . Shots Hit Robots 60 | . 55 5 Core Hits 21 | . 19 2 Critical Kills . | . . . Critical Parts Destroyed 1 | . 1 . Critical Strikes 1 | . 1 . Destroy 1 | . 1 . Melee Attacks . | . . . Impact . | . . . Slashing . | . . . Piercing . | . . . Sneak Attacks . | . . . Combat Hostiles . | . . . Follow-up Attacks . | . . . Damage Inflicted 747 | . 684 63 Guns 656 | . 593 63 Cannons . | . . . Explosions 67 | . 67 . Melee . | . . . Ramming . | . . . Kinetic 441 | . 441 . Thermal 188 | . 125 63 Explosive . | . . . Electromagnetic 118 | . 118 . Impact . | . . . Slashing . | . . . Piercing . | . . . Highest Corruption 1 | . 1 1 Average Corruption 1 | . 1 1 Corruption Purged . | . . . Corruption Blocked . | . . . Effects 4 | . 2 2 Message Errors 3 | . 1 2 Energy Discharges 1 | . 1 . Overload Shots . | . . . Overflow Damage 8 | . 8 . Projectiles 8 | . 8 . Explosions . | . . . Melee . | . . . Knockbacks . | . . . Impact . | . . . Kinetic . | . . . Secondary . | . . . Self-Inflicted Damage . | . . . Shots . | . . . Rammed . | . . . Targets Rammed . | . . . Kicked . | . . . Crushed . | . . . Highest Temperature 120 | . 120 55 Average Temperature 31 | . 31 32 Received Heat Transfer 336 | . 336 . Siege Activations . | . . . Robots Corrupted . | . . . Combat Hostiles . | . . . Parts Fried . | . . . Impact Corruptions . | . . . Robots Melted . | . . . Combat Hostiles . | . . . Parts Melted . | . . . Heat Transferred 310 | . 125 185 Parts Sabotaged . | . . . Parts Stolen . | . . . Parts Stripped . | . . . Power Chain Reactions 1 | . 1 . Missiles Intercepted . | . . . Alert | -11 -10 -10 ------- Run | Scr Mat Min Peak Influence 159 | . 159 79 Initial 9 | . . 9 Average 59 | . 66 49 Maximum Alert Level . | . . . Low Security (%) 100 | 100 100 100 Level 1 . | . . . Level 2 . | . . . Level 3 . | . . . Level 4 . | . . . Level 5 . | . . . High Security . | . . . Max Security . | . . . Squads Dispatched 2 | . 2 . Investigation . | . . . Extermination . | . . . Reinforcement 2 | . 2 . Assault . | . . . Garrison . | . . . Intercept . | . . . Searches Triggered . | . . . Construction Impeded . | . . . Haulers Reinforced . | . . . Active Scanning Responses . | . . . Cargo Convoy Interrupts . | . . . Stealth | -11 -10 -10 --------- Run | Scr Mat Min Distress Signals 5 | . 5 . Communications Jammed . | . . . Distress Signals . | . . . Times Spotted 30 | . 25 5 Peak Tracking Total 7 | . 7 3 Tactical Retreats 3 | . 2 1 Traps | -11 -10 -10 ------- Run | Scr Mat Min Traps Triggered 1 | . 1 . Indirectly . | . . . Trap Hack Attempts . | . . . Triggered . | . . . Disarmed . | . . . Reprogrammed . | . . . Reused . | . . . Traps Extracted . | . . . Installed . | . . . Triggered . | . . . Machines | -11 -10 -10 ---------- Run | Scr Mat Min Machines Disabled . | . . . Max in Single Turn . | . . . Machines Sabotaged . | . . . Garrisons Compromised . | . . . Overloaded Fab Kills . | . . . Hacking | -11 -10 -10 --------- Run | Scr Mat Min Machines Accessed 5 | . 5 . Terminals 4 | . 4 . Fabricators . | . . . Repair Stations . | . . . Recycling Units 1 | . 1 . Scanalyzers . | . . . Garrison Access . | . . . Total Hacks 14 | . 14 . Successful 12 | . 12 . Failed 2 | . 2 . Catastrophic 1 | . 1 . Database Lockouts . | . . . Manual 1 | . 1 . Terminals 12 | . 12 . Fabricators . | . . . Repair Stations . | . . . Recycling Units 2 | . 2 . Scanalyzers . | . . . Garrison Access . | . . . Terminal Hacks 10 | . 10 . Record 8 | . 8 . Prototype ID Bank 1 | . 1 . Dispatch Records 1 | . 1 . Fabricator Hacks . | . . . Repair Station Hacks . | . . . Recycling Unit Hacks 2 | . 2 . Recycle Component 1 | . 1 . Process 1 | . 1 . Scanalyzer . | . . . Garrison Access Hacks . | . . . Unauthorized Hacks . | . . . Terminals . | . . . Fabricators . | . . . Repair Stations . | . . . Recycling Units . | . . . Scanalyzers . | . . . Garrison Access . | . . . Data Cores Recovered . | . . . Used . | . . . Hacking Detections 3 | . 3 . Full Trace Events . | . . . Feedback Events . | . . . Feedback Blocked . | . . . Robot Schematics Acquired . | . . . Robots Built . | . . . Authchips . | . . . Time . | . . . Total Robot Build Rating . | . . . Part Schematics Acquired . | . . . Parts Built . | . . . Authchips . | . . . Time . | . . . Total Part Build Rating . | . . . Parts Repaired . | . . . Time . | . . . Parts Recycled 1 | . 1 . Recycled Matter 121 | . 121 . Retrieved Matter . | . . . Retrieved Components . | . . . Parts Scanalyzed . | . . . Part Schematics Acquired . | . . . Parts Damaged . | . . . Bothacking | -11 -10 -10 ------------ Run | Scr Mat Min Used RIF Installer . | . . . Robots Hacked . | . . . Non-combat . | . . . Combat . | . . . Robot Hacks Applied . | . . . Relay Couplers Released . | . . . Fabnet Peak Effective % . | . . . Robots Rewired . | . . . Allies Hacked . | . . . Hacks Repelled . | . . . Allies | -11 -10 -10 -------- Run | Scr Mat Min Total Allies . | . . . Largest Group . | . . . Highest-Rated Group . | . . . Highest-Rated Ally . | . . . Total Orders . | . . . Ally Attacks . | . . . Total Damage . | . . . Kills . | . . . Allies Corrupted . | . . . Allies Melted . | . . . Intel | -11 -10 -10 ------- Run | Scr Mat Min Robot Analysis Total . | . . . Derelict Logs Recovered 2 | . . 2 Drone Launches . | . . . Drone Recoveries . | . . . Exploration | -11 -10 -10 ------------- Run | Scr Mat Min Turns Passed 1418 | 74 1013 331 Spaces Moved 1098 | 68 722 308 Core 12 | 9 3 . Treads . | . . . Legs . | . . . Wheels 1086 | 59 719 308 Hover . | . . . Flight . | . . . Fastest Speed 50 | 50 80 90 Average Speed 94 | 95 93 97 Slowest Speed 150 | 150 150 100 Overloaded Moves . | . . . Propulsion Burnouts . | . . . Robots Hopped . | . . . Cave-ins Triggered . | . . . Exploration Rate (%) 46 | 4 73 61 Regions Visited 2 Branch Regions 1 Pre-discovered Areas . | . . . Known Exits Taken . | . . . Unknown Exits Taken 2 | 1 1 . Scrap Searched 1 | . . 1 Spaces Dug . | . . . Terrain Destroyed 4 | . 4 . Melee . | . . . Projectile 1 | . 1 . AOE 3 | . 3 . Terrain Rammed . | . . . Walls Destroyed . | . . . Machines Disabled . | . . . Actions | -11 -10 -10 --------- Run | Scr Mat Min Total 1356 | 74 953 329 Wait 131 | . 123 8 Move 1096 | 67 721 308 Hop . | . . . Pick Up 19 | 2 16 1 Fast Attach 13 | 5 8 . Attach 7 | . 7 . Detach 2 | . 2 . Swap 4 | . 2 2 Drop 11 | . 10 1 Fire 73 | . 64 9 Melee . | . . . Ram . | . . . Kick . | . . . Crush . | . . . Escape Stasis . | . . . Rewire . | . . . Trap . | . . . Miscellaneous . | . . . Route ------- -11/Scrapyard -10/Materials (discovered 2 exits: [*Mat] / [*Min]) -10/Mines (discovered 1 exit: [*Mat]) History --------- Turn | Location | Event 6 | -11/Scrapyard | Discovered new exit (range 15) 75 | -11/Scrapyard | Entered Materials 324 | -10/Materials | Build established: Mutant 519 | -10/Materials | Core integrity fell below 50% 829 | -10/Materials | Core integrity fell below 20% 888 | -10/Materials | Lost 6 parts (1p2n1u2w) 988 | -10/Materials | Discovered new exit (range 16) 1038 | -10/Materials | Discovered new exit (range 11) 1088 | -10/Materials | Entered Mines 1091 | -10/Mines | Met a Derelict bent on vengeance 1159 | -10/Mines | Discovered new exit (range 9) 1312 | -10/Mines | Found a hidden stash of uninstalled traps 1384 | -10/Mines | Learned Materials security intel 1419 | -10/Mines | Destroyed by S-10 Pest with Light Assault Rifle Last Messages --------------- 01174_ Found Lrg. Storage Unit. 01174_ Found Mining Claw. 01174_ Found 13 Matter. 01175_ Acquired 13 matter. 01175_ K-01 Serf collects debris. 01179_ Dropped Wheel. 01181_ Acquired Mining Claw. 01204_ 3HK/=DYRIZD9GMRD4RYE 01220_ K-01 Serf collects debris. 01249_ K-01 Serf cleans the Core Extractor. 01258_ K-01 Serf collects debris. 01312_ A stash of uninstalled traps is collected here! 01322_ K-01 Serf collects debris. 01345_ YOMBFTA0CHN,T7H8CQ 3&G0ZB Y 01345_ K-01 Serf collects debris. 01384_ Acquired derelict log, extracted data. Data stored: Materials security intel. 01386_ K-01 Serf collects debris. 01404_ S-10 Pest destroyed. 01415_ Acquired 43 matter. Map ----- +----------------------------------------------------+ | ????????????####?# #### ##??? ??## | | ???????###### ### #??? ??# | | ???????# ## #??? #??# | | ???????# ##??? ##??# | | ???????# ##### ##??? #????# | | ???????# ##???# ##???? ?????# | | ???????# ###????# #????? #?????## | | ???????####??????# #?????#???????### | | ?????????????????# #???????????????? | | ?????????????????# #???????????????? | | ?????????????????## ##???????????????? | | ????????? """ ###### #????????????????? | | ????????? """ #????????????????? | | ????????? """ # #### #????????????????? | | ???# ??????????????# #????????????????? | | ??? ?????????????# #????????????????? | | ??# ????????????# #????????????????? | | ??# ???????????# #????????????????? | | ???# ??????????# #????????????????? | | ???# !?????????# #####????????????? | | ????# #?????#### #????????????? | | ?????? !#????# ### #????????????? | | ???????# #???# ####?# #????????????? | | ????????# #??#*#????# #????????????? | | ????????#= [ ###%###### #??????? | | ????????# @ s[= ??????? | | ????????# s ??????? | | ???# = ####### ??????? | | ??# ##??????? ###???????? | | ??# #????????? #??????????? | | ??# #??????????# #??????????? | | ??## #???????????? ???????????? | | ???## #????????????? ???????????? | | ????## #?????????????? ???????????? | | ?????####???????????????# ???????????? | | ?????????????????????????# ???????????? | | ??????????????????????????????????????? | | ??????????????????????????????????????? | | ??????????????????????????????????????? | | ??????????????????????????????????????? | | ??????????????????????????????????????? | | ??????????????????????????????????????? | | ??????????????????????????????????????? | | ??????????????????????????????????????? | | ??????????????????????????????????????? | | ??????????????????????????????????????? | | ??????????????????????????????????????? | | ??????????????????????????????????????? | | ??????????????????????????????????????? | | ??????????????????????????????????????? | +----------------------------------------------------+ Best States ------------- Heat Dissipation 25 Energy Generation 14 Energy Capacity 310 Matter Stores 300 Matter Capacity 300 Sight Range 16 Terrain Scan Density 10 Weapon Shielding 33 Evasion (%) 44 Targeting Accuracy 6 Offensive Hacking 10 Item Schematics ----------------- None Robot Schematics ------------------ None Fabricated ------------ Nothing Alien Tech Used ----------------- None Achievements -------------- None Challenges ------------ None Game ------ Seed DerelictThermicInjector Manual? 0 Play Time 00:15:47 Cumulative 17.1 hours Start 2022.04.06 @ 19:22:41 End 2022.04.06 @ 19:37:28 Sessions 1 Manual Loads 0 Difficulty Rogue Special Mode None Game No. 63 Rogue 27 Adventurer 36 Explorer 0 Win Type - Total 0 Types 0/0/0/0/0/0/0/0/0 Lore% 15 Gallery% 20 Achievement% 15 Wizard Run 0 Options --------- ASCII 0 Keyboard 1 Movement Numpad Keybinds 0 Fullscreen 2 Font 18/X11Bold Map View 76x50 Tactical HUD 1 Map Filters NONE Filters NONE Steam 1 RUN: 9422a531-47d7-4f31-9ec0-4b4d18a6a7c6